fUSD/lending_fUSD_20250213
["ID","MTS","AMOUNT","RATE_DAILY","PERIOD"]
[352950661,1739458252924,-1519.26,0.00014183,2]
[352950662,1739458252935,-500.0,0.00014183,2]
[352950663,1739458252946,-502.7174958,0.00014183,2]
[352950664,1739458252956,-500.0,0.00014183,2]
[352950665,1739458252966,-500.0,0.00014183,2]
[352950666,1739458252978,-500.0,0.00014183,2]
[352950667,1739458252990,-500.0,0.00014183,2]
[352950668,1739458253000,-500.0,0.00014183,2]
[352950669,1739458253010,-500.0,0.00014183,2]
[352950670,1739458253021,-964.68,0.00014183,2]
[352950671,1739458253031,-2369.49,0.00014183,2]
[352950672,1739458253041,-500.0,0.00014183,2]
[352950673,1739458253052,-502.77863545,0.00014183,2]
[352950674,1739458253063,-500.0,0.00014183,2]
[352950675,1739458253073,-402.92788431,0.00014183,2]
[352950676,1739458253087,-995.18,0.00014183,2]
[352950677,1739458253097,-500.0,0.00014183,2]
[352950678,1739458253107,-500.0,0.00014183,2]
[352950679,1739458253117,-634.43,0.00014183,2]
[352950680,1739458253127,-518.37,0.00014183,2]
[352950681,1739458253136,-500.0,0.00014183,2]
[352950682,1739458253147,-500.0,0.00014183,2]
[352950683,1739458253158,-500.0,0.00014183,2]
[352950684,1739458253167,-500.0,0.00014183,2]
[352950685,1739458253178,-606.68,0.00014183,2]
[352950686,1739458253189,-503.95674388,0.00014183,2]
[352950687,1739458253202,-745.35,0.00014183,2]
[352950688,1739458253217,-500.0,0.00014183,2]
[352950689,1739458253231,-955.04,0.00014183,2]
[352950690,1739458253243,-655.59,0.00014183,2]
[352950691,1739458253253,-503.69947309,0.00014183,2]
[352950692,1739458253262,-490.38135613,0.00014183,2]
[352950693,1739458253272,-500.0,0.00014183,2]
[352950694,1739458253281,-961.42,0.00014183,2]
[352950695,1739458253292,-1211.21,0.00014183,2]
[352950696,1739458253302,-570.77,0.00014183,2]
[352950697,1739458253312,-741.09,0.00014183,2]
[352950698,1739458253322,-1689.64,0.00014183,2]
[352950699,1739458253333,-500.0,0.00014183,2]
[352950700,1739458253345,-500.0,0.00014183,2]
[352950701,1739458253355,-2614.96,0.00014183,2]
[352950702,1739458253365,-500.0,0.00014183,2]
[352950703,1739458253375,-500.0,0.00014183,2]
[352950704,1739458253385,-500.0,0.00014183,2]
[352950705,1739458253395,-500.0,0.00014183,2]
[352950706,1739458253405,-500.0,0.00014183,2]
[352950707,1739458253415,-500.0,0.00014183,2]
[352950708,1739458253425,-500.0,0.00014183,2]
[352950709,1739458253435,-885.06,0.00014183,2]
[352950710,1739458253445,-500.0,0.00014183,2]
[352950711,1739458253454,-500.0,0.00014183,2]
[352950712,1739458253465,-500.0,0.00014183,2]
[352950713,1739458253475,-630.39,0.00014183,2]
[352950714,1739458253485,-500.0,0.00014183,2]
[352950715,1739458253497,-892.78,0.00014183,2]
[352950716,1739458253507,-1754.03,0.00014183,2]
[352950717,1739458253701,-1542.19,0.00014183,2]
[352950718,1739458253712,-500.0,0.00014183,2]
[352950719,1739458253721,-649.58,0.00014183,2]
[352950720,1739458253731,-567.27,0.00014183,2]
[352950721,1739458253740,-500.0,0.00014183,2]
[352950722,1739458253750,-352.9234566,0.00014183,2]
[352950723,1739458253759,-942.81,0.00014183,2]
[352950724,1739458253769,-1160.84,0.00014183,2]
[352950725,1739458253778,-1007.62,0.00014183,2]
[352950726,1739458253788,-1210.72,0.00014183,2]
[352950727,1739458253798,-504.78926002,0.00014183,2]
[352950728,1739458253807,-509.89422423,0.00014183,2]
[352950729,1739458253817,-2093.05,0.00014183,2]
[352950730,1739458253826,-500.0,0.00014183,2]
[352950731,1739458253837,-900.7,0.00014183,2]
[352950732,1739458253846,-1181.84,0.00014183,2]
[352950733,1739458253856,-500.0,0.00014183,2]
[352950734,1739458253866,-822.54,0.00014183,2]
[352950735,1739458253875,-1418.47,0.00014183,2]
[352950736,1739458253885,-977.3,0.00014183,2]
[352950737,1739458253895,-1006.62,0.00014183,2]
[352950738,1739458253907,-500.0,0.00014183,2]
[352950739,1739458253917,-14605.1068863,0.00014189,2]
[352950740,1739458253926,-6502.5007231,0.00014189,2]
[352950741,1739458253937,-500.0,0.00014189,2]
[352950742,1739458253946,-105345.59767598,0.0001419,2]
[352950743,1739458253956,-14727.9842406,0.0001419,2]
[352950744,1739458253966,-14850.8615948,0.0001419,2]
[352950745,1739458253976,-6557.2083053,0.0001419,2]
[352950746,1739458253988,-6611.9158874,0.0001419,2]
[352950747,1739458253997,-150.0,0.00014192,2]
[352950748,1739458254007,-150.0,0.00014192,2]
[352950749,1739458254016,-1969.78,0.00014192,2]
[352950750,1739458254025,-449.9,0.00014192,2]
[352950751,1739458254035,-596.01,0.00014192,2]
[352950752,1739458254044,-638.38,0.00014196,2]
[352950753,1739458254054,-610.3,0.00014196,2]
[352950754,1739458254064,-1088.5,0.00014196,2]
[352950755,1739458254074,-500.0,0.00014196,2]
[352950756,1739458254084,-500.0,0.00014196,2]
[352950757,1739458254094,-291.64742273,0.00014196,2]
[352950758,1739458254103,-500.0,0.00014196,2]
[352950759,1739458254113,-825.02,0.00014196,2]
[352950760,1739458254123,-500.0,0.00014196,2]
[352950761,1739458254134,-824.99,0.00014196,2]
[352950762,1739458254145,-500.0,0.00014196,2]
[352950763,1739458254154,-500.0,0.00014196,2]
[352950764,1739458254164,-720.89,0.00014196,2]
[352950765,1739458254173,-500.0,0.00014196,2]
[352950766,1739458254183,-940.68,0.00014196,2]
[352950767,1739458254194,-690.19,0.00014196,2]
[352950768,1739458254203,-244.32272909,0.00014196,2]
[352950769,1739458254214,-413.71690094,0.00014196,2]
[352950770,1739458254224,-500.0,0.00014196,2]
[352950771,1739458254234,-500.0,0.00014196,2]
[352950772,1739458254243,-500.0,0.00014196,2]
[352950773,1739458254253,-500.0,0.00014196,2]
[352950774,1739458254263,-500.0,0.00014196,2]
[352950775,1739458254274,-504.18766811,0.00014196,2]
[352950776,1739458254283,-969.14,0.00014196,2]
[352950777,1739458254294,-500.0,0.00014196,2]
[352950778,1739458254309,-750.4,0.00014196,2]
[352950779,1739458254320,-523.44,0.00014196,2]
[352950780,1739458254330,-500.0,0.00014196,2]
[352950781,1739458254341,-500.0,0.00014196,2]
[352950782,1739458254352,-500.0,0.00014196,2]
[352950783,1739458254361,-500.0,0.00014196,2]
[352950784,1739458254371,-500.0,0.00014196,2]
[352950785,1739458254381,-500.0,0.00014196,2]
[352950786,1739458254391,-500.0,0.00014196,2]
[352950787,1739458254402,-500.0,0.00014196,2]
[352950788,1739458254413,-500.0,0.00014196,2]
[352950789,1739458254423,-931.62,0.00014196,2]
[352950790,1739458254434,-500.0,0.00014196,2]
[352950791,1739458254444,-500.0,0.00014196,2]
[352950792,1739458254454,-500.0,0.00014196,2]
[352950793,1739458254465,-699.55,0.00014196,2]
[352950794,1739458254476,-500.0,0.00014196,2]
[352950795,1739458254487,-500.0,0.00014196,2]
[352950796,1739458254498,-500.0,0.00014196,2]
[352950797,1739458254509,-500.0,0.00014196,2]
[352950798,1739458254518,-500.0,0.00014196,2]
[352950799,1739458254529,-500.0,0.00014196,2]
[352950800,1739458254539,-759.45,0.00014196,2]
[352950801,1739458254550,-500.0,0.00014196,2]
[352950802,1739458254560,-549.64,0.00014196,2]
[352950803,1739458254571,-500.0,0.00014196,2]
[352950804,1739458254581,-500.0,0.00014196,2]
[352950805,1739458254592,-1002.73,0.00014196,2]
[352950806,1739458254602,-500.0,0.00014196,2]
[352950807,1739458254611,-500.0,0.00014196,2]
[352950808,1739458254623,-500.0,0.00014196,2]
[352950809,1739458254633,-500.0,0.00014196,2]
[352950810,1739458254643,-405.36660524,0.00014196,2]
[352950811,1739458254654,-500.0,0.00014196,2]
[352950812,1739458254664,-500.0,0.00014196,2]
[352950813,1739458254675,-500.0,0.00014196,2]
[352950814,1739458254685,-671.71,0.00014196,2]
[352950815,1739458254695,-500.0,0.00014196,2]
[352950816,1739458254705,-500.0,0.00014196,2]
[352950817,1739458254716,-613.91,0.00014196,2]
[352950818,1739458254726,-1061.75,0.00014196,2]
[352950819,1739458254736,-516.54,0.00014196,2]
[352950820,1739458254747,-355.87615385,0.00014196,2]
[352950821,1739458254757,-500.0,0.00014196,2]
[352950822,1739458254768,-500.0,0.00014196,2]
[352950823,1739458254778,-500.0,0.00014196,2]
[352950824,1739458254788,-500.0,0.00014196,2]
[352950825,1739458254798,-1013.81,0.00014196,2]
[352950826,1739458254809,-300.0,0.00014197,2]
[352950827,1739458254819,-1811.11,0.00014197,2]
[352950828,1739458254828,-1438.44,0.00014197,2]
[352950829,1739458254839,-500.0,0.00014197,2]
[352950830,1739458254849,-529.29,0.00014197,2]
[352950831,1739458254860,-701.01,0.00014197,2]
[352950832,1739458254870,-500.0,0.00014197,2]
[352950833,1739458254880,-1382.04,0.00014197,2]
[352950834,1739458254890,-536.99,0.00014197,2]
[352950835,1739458254906,-500.0,0.00014197,2]
[352950836,1739458254916,-616.9,0.00014197,2]
[352950837,1739458254925,-210.46172286,0.00014197,2]
[352950838,1739458254935,-1944.55,0.00014197,2]
[352950839,1739458254947,-1475.55,0.00014197,2]
[352950840,1739458254957,-972.14,0.00014197,2]
[352950841,1739458254966,-1840.67,0.00014197,2]
[352950842,1739458254977,-1863.87,0.00014197,2]
[352950843,1739458254987,-500.0,0.00014197,2]
[352950844,1739458254997,-569.0,0.00014197,2]
[352950845,1739458255007,-976.52,0.00014197,2]
[352950846,1739458255016,-829.55,0.00014197,2]
[352950847,1739458255026,-819.53,0.00014197,2]
[352950848,1739458255035,-1081.8,0.00014197,2]
[352950849,1739458255045,-500.0,0.00014197,2]
[352950850,1739458255060,-807.33,0.00014197,2]
[352950851,1739458255070,-500.0,0.00014197,2]
[352950852,1739458255080,-635.12,0.00014197,2]
[352950853,1739458255093,-1401.34,0.00014197,2]
[352950854,1739458255103,-949.72,0.00014197,2]
[352950855,1739458255112,-500.0,0.00014197,2]
[352950856,1739458255122,-500.0,0.00014197,2]
[352950857,1739458255132,-525.97,0.00014197,2]
[352950858,1739458255142,-975.43,0.00014197,2]
[352950859,1739458255152,-1693.57,0.00014197,2]
[352950860,1739458255162,-500.0,0.00014197,2]
[352950861,1739458255171,-500.0,0.00014197,2]
[352950862,1739458255181,-920.13,0.00014197,2]
[352950863,1739458255190,-520.86,0.00014197,2]
[352950864,1739458255200,-2062.75,0.00014197,2]
[352950865,1739458255210,-622.47,0.00014197,2]
[352950866,1739458255220,-500.0,0.00014197,2]
[352950867,1739458255230,-500.0,0.00014197,2]
[352950868,1739458255239,-500.0,0.00014197,2]
[352950869,1739458255249,-696.97,0.00014197,2]
[352950870,1739458255259,-500.0,0.00014197,2]
[352950871,1739458255269,-500.0,0.00014197,2]
[352950872,1739458255278,-1006.5,0.00014197,2]
[352950873,1739458255288,-994.47,0.00014197,2]
[352950874,1739458255298,-500.0,0.00014197,2]
[352950875,1739458255308,-770.09,0.00014197,2]
[352950876,1739458255318,-1281.95,0.00014197,2]
[352950877,1739458255328,-1035.76,0.00014197,2]
[352950878,1739458255338,-500.0,0.00014197,2]
[352950879,1739458255348,-2832.41,0.00014197,2]
[352950880,1739458255358,-1999.46,0.00014197,2]
[352950881,1739458255368,-821.08,0.00014197,2]
[352950882,1739458255377,-1005.78,0.00014197,2]
[352950883,1739458255387,-500.0,0.00014197,2]
[352950884,1739458255397,-1264.27,0.00014197,2]
[352950885,1739458255407,-1287.35,0.00014197,2]
[352950886,1739458255416,-3207.76,0.00014197,2]
[352950887,1739458255426,-1958.15,0.00014197,2]
[352950888,1739458255436,-815.36,0.00014197,2]
[352950889,1739458255446,-1143.5,0.00014197,2]
[352950890,1739458255456,-502.69,0.00014197,2]
[352950891,1739458255465,-500.0,0.00014197,2]
[352950892,1739458255475,-2261.06,0.00014197,2]
[352950893,1739458255485,-500.0,0.00014197,2]
[352950894,1739458255495,-1942.47,0.00014197,2]
[352950895,1739458255504,-3197.41,0.00014197,2]
[352950896,1739458255514,-500.0,0.00014197,2]
[352950897,1739458255524,-1665.64,0.00014197,2]
[352950898,1739458255533,-797.37,0.00014197,2]
[352950899,1739458255542,-2115.88,0.00014197,2]
[352950900,1739458255553,-500.0,0.00014197,2]
[352950901,1739458255562,-1763.39,0.00014197,2]
[352950902,1739458255572,-3000.88,0.00014197,2]
[352950903,1739458255582,-719.21,0.00014197,2]
[352950904,1739458255594,-1494.07,0.00014197,2]
[352950905,1739458255605,-500.0,0.00014197,2]
[352950906,1739458255614,-2122.71,0.00014197,2]
[352950907,1739458255624,-509.06234011,0.00014197,2]
[352950908,1739458255635,-3465.3,0.00014197,2]
[352950909,1739458255644,-500.0,0.00014197,2]
[352950910,1739458255654,-1153.75,0.00014197,2]
[352950911,1739458255664,-3740.45,0.00014197,2]
[352950912,1739458255674,-1137.59,0.00014197,2]
[352950913,1739458255683,-2002.29,0.00014197,2]
[352950914,1739458255693,-500.0,0.00014197,2]
[352950915,1739458255703,-3806.5,0.00014197,2]
[352950916,1739458255713,-5466.6,0.00014197,2]
[352950917,1739458255723,-2295.63,0.00014197,2]
[352950918,1739458255733,-1661.74,0.00014197,2]
[352950919,1739458255743,-1965.14,0.00014197,2]
[352950920,1739458255752,-4305.33,0.00014197,2]
[352950921,1739458255762,-730.91,0.00014197,2]
[352950922,1739458255771,-500.0,0.00014198,2]
[352950923,1739458255941,-500.0,0.00014198,2]
[352950924,1739458255966,-500.51786291,0.00014198,2]
[352950925,1739458255977,-500.0,0.00014198,2]
[352950926,1739458255987,-500.0,0.00014198,2]
[352950927,1739458255996,-500.0,0.00014198,2]
[352950928,1739458256006,-500.0,0.00014198,2]
[352950929,1739458256016,-420.66102088,0.00014198,2]
[352950930,1739458256025,-300.0,0.00014198,2]
[352950931,1739458256035,-500.0,0.00014198,2]
[352950932,1739458256044,-500.0,0.00014198,2]
[352950933,1739458256054,-500.0,0.00014198,2]
[352950934,1739458256063,-409.64356582,0.00014198,2]
[352950935,1739458256072,-500.0,0.00014198,2]
[352950936,1739458256082,-640.16433935,0.00014198,2]
[352950937,1739458256094,-617.8,0.00014198,2]
[352950938,1739458256104,-500.0,0.00014198,2]
[352950939,1739458256113,-500.0,0.00014198,2]
[352950940,1739458256123,-500.0,0.00014198,2]
[352950941,1739458256133,-500.0,0.00014198,2]
[352950942,1739458256142,-500.0,0.00014198,2]
[352950943,1739458256151,-500.0,0.00014198,2]
[352950944,1739458256161,-500.0,0.00014198,2]
[352950945,1739458256171,-500.0,0.00014198,2]
[352950946,1739458256180,-500.0,0.00014198,2]
[352950947,1739458256190,-500.0,0.00014198,2]
[352950948,1739458256199,-500.0,0.00014198,2]
[352950949,1739458256209,-500.0,0.00014198,2]
[352950950,1739458256218,-502.34190938,0.00014198,2]
[352950951,1739458256227,-265.27315049,0.00014198,2]
[352950952,1739458256237,-500.0,0.00014198,2]
[352950953,1739458256247,-500.0,0.00014198,2]
[352950954,1739458256256,-500.0,0.00014198,2]
[352950955,1739458256266,-500.0,0.00014198,2]
[352950956,1739458256275,-325.42755532,0.00014198,2]
[352950957,1739458256285,-500.0,0.00014198,2]
[352950958,1739458256295,-500.0,0.00014198,2]
[352950959,1739458256304,-500.0,0.00014198,2]
[352950960,1739458256315,-500.0,0.00014198,2]
[352950961,1739458256324,-511.48,0.00014198,2]
[352950962,1739458256334,-500.0,0.00014198,2]
[352950963,1739458256346,-502.05,0.00014198,2]
[352950964,1739458256356,-500.0,0.00014198,2]
[352950965,1739458256367,-500.0,0.00014198,2]
[352950966,1739458256376,-500.0,0.00014198,2]
[352950967,1739458256386,-500.0,0.00014198,2]
[352950968,1739458256395,-500.0,0.00014198,2]
[352950969,1739458256405,-500.0,0.00014198,2]
[352950970,1739458256415,-500.0,0.00014198,2]
[352950971,1739458256424,-500.0,0.00014198,2]
[352950972,1739458256435,-500.0,0.00014198,2]
[352950973,1739458256445,-500.0,0.00014198,2]
[352950974,1739458256454,-503.77257148,0.00014198,2]
[352950975,1739458256464,-500.0,0.00014198,2]
[352950976,1739458256475,-584.85,0.00014198,2]
[352950977,1739458256484,-500.0,0.00014198,2]
[352950978,1739458256494,-272.54798089,0.00014198,2]
[352950979,1739458256504,-500.0,0.00014198,2]
[352950980,1739458256514,-517.5,0.00014198,2]
[352950981,1739458256523,-500.0,0.00014198,2]
[352950982,1739458256533,-508.66365507,0.00014198,2]
[352950983,1739458256543,-500.0,0.00014198,2]
[352950984,1739458256553,-500.0,0.00014198,2]
[352950985,1739458256563,-527.78087388,0.00014198,2]
[352950986,1739458256572,-500.0,0.00014198,2]
[352950987,1739458256581,-500.0,0.00014198,2]
[352950988,1739458256592,-1314.23,0.00014198,2]
[352950989,1739458256602,-500.0,0.00014198,2]
[352950990,1739458256611,-500.0,0.00014198,2]
[352950991,1739458256621,-500.0,0.00014198,2]
[352950992,1739458256631,-500.0,0.00014198,2]
[352950993,1739458256640,-500.0,0.00014198,2]
[352950994,1739458256650,-500.0,0.00014198,2]
[352950995,1739458256660,-1224.42,0.00014198,2]
[352950996,1739458256670,-500.0,0.00014198,2]
[352950997,1739458256680,-1086.08,0.00014198,2]
[352950998,1739458256690,-500.0,0.00014198,2]
[352950999,1739458256699,-500.0,0.00014198,2]
[352951000,1739458256709,-737.99,0.00014198,2]
[352951001,1739458256719,-500.0,0.00014198,2]
[352951002,1739458256729,-1090.7,0.00014198,2]
[352951003,1739458256738,-1331.73,0.00014198,2]
[352951004,1739458256748,-500.0,0.00014198,2]
[352951005,1739458256757,-1373.74,0.00014198,2]
[352951006,1739458256766,-1319.13,0.00014198,2]
[352951007,1739458256776,-500.0,0.00014198,2]
[352951008,1739458256785,-728.68,0.00014198,2]
[352951009,1739458256795,-1021.56,0.00014198,2]
[352951010,1739458256805,-777.2,0.00014198,2]
[352951011,1739458256815,-502.27247511,0.00014198,2]
[352951012,1739458256825,-566.40084152,0.00014198,2]
[352951013,1739458256835,-500.0,0.00014198,2]
[352951014,1739458256846,-956.83,0.00014198,2]
[352951015,1739458256857,-500.44719181,0.00014198,2]
[352951016,1739458256866,-500.0,0.00014198,2]
[352951017,1739458256875,-301.46395054,0.00014198,2]
[352951018,1739458256885,-608.09965435,0.00014198,2]
[352951019,1739458256898,-500.0,0.00014198,2]
[352951020,1739458256908,-500.0,0.00014198,2]
[352951021,1739458256917,-776.34,0.00014198,2]
[352951022,1739458256927,-1000.93,0.00014198,2]
[352951023,1739458256936,-1911.62,0.00014198,2]
[352951024,1739458256947,-500.0,0.00014198,2]
[352951025,1739458256957,-500.0,0.00014198,2]
[352951026,1739458256967,-494.17237883,0.00014198,2]
[352951027,1739458256978,-745.04,0.00014198,2]
[352951028,1739458256993,-2510.01,0.00014198,2]
[352951029,1739458257003,-2093.55,0.00014198,2]
[352951030,1739458257013,-805.33,0.00014198,2]
[352951031,1739458257022,-1572.63,0.00014198,2]
[352951032,1739458257032,-1019.07,0.00014198,2]
[352951033,1739458257041,-500.0,0.00014198,2]
[352951034,1739458257051,-500.0,0.00014198,2]
[352951035,1739458257061,-500.0,0.00014198,2]
[352951036,1739458257071,-500.0,0.00014198,2]
[352951037,1739458257081,-500.0,0.00014198,2]
[352951038,1739458257094,-500.0,0.00014198,2]
[352951039,1739458257104,-500.0,0.00014198,2]
[352951040,1739458257113,-768.93,0.00014198,2]
[352951041,1739458257123,-1204.3,0.00014198,2]
[352951042,1739458257132,-500.0,0.00014198,2]
[352951043,1739458257142,-500.0,0.00014198,2]
[352951044,1739458257152,-1341.57,0.00014198,2]
[352951045,1739458257162,-2132.3,0.00014198,2]
[352951046,1739458257171,-500.0,0.00014198,2]
[352951047,1739458257181,-630.49,0.00014198,2]
[352951048,1739458257191,-883.56,0.00014198,2]
[352951049,1739458257200,-500.0,0.00014198,2]
[352951050,1739458257210,-1618.88,0.00014198,2]
[352951051,1739458257220,-1273.11,0.00014198,2]
[352951052,1739458257230,-500.0,0.00014198,2]
[352951053,1739458257239,-729.63,0.00014198,2]
[352951054,1739458257248,-1075.09,0.00014198,2]
[352951055,1739458257258,-504.68113697,0.00014198,2]
[352951056,1739458257267,-497.07876068,0.00014198,2]
[352951057,1739458257277,-809.24,0.00014198,2]
[352951058,1739458257286,-1804.44,0.00014198,2]
[352951059,1739458257296,-500.0,0.00014198,2]
[352951060,1739458257305,-500.0,0.00014198,2]
[352951061,1739458257315,-1861.09,0.00014198,2]
[352951062,1739458257324,-956.08,0.00014198,2]
[352951063,1739458257333,-500.0,0.00014198,2]
[352951064,1739458257347,-1636.14,0.00014198,2]
[352951065,1739458257361,-500.0,0.00014198,2]
[352951066,1739458257371,-500.0,0.00014198,2]
[352951067,1739458257380,-1271.86,0.00014198,2]
[352951068,1739458257389,-657.08,0.00014198,2]
[352951069,1739458257398,-507.33952471,0.00014198,2]
[352951070,1739458257408,-500.0,0.00014198,2]
[352951071,1739458257419,-2449.92,0.00014198,2]
[352951072,1739458257428,-500.0,0.00014198,2]
[352951073,1739458257439,-520.31227603,0.00014198,2]
[352951074,1739458257449,-500.0,0.00014198,2]
[352951075,1739458257459,-2428.8,0.00014198,2]
[352951076,1739458257470,-2205.1,0.00014198,2]
[352951077,1739458257479,-618.12457006,0.00014198,2]
[352951078,1739458257488,-500.0,0.00014198,2]
[352951079,1739458257497,-500.0,0.00014198,2]
[352951080,1739458257507,-901.81,0.00014198,2]
[352951081,1739458257517,-500.0,0.00014198,2]
[352951082,1739458257527,-500.0,0.00014198,2]
[352951083,1739458257536,-500.0,0.00014198,2]
[352951084,1739458257546,-500.0,0.00014198,2]
[352951085,1739458257556,-697.49,0.00014198,2]
[352951086,1739458257566,-500.0,0.00014198,2]
[352951087,1739458257575,-500.0,0.00014198,2]
[352951088,1739458257584,-1539.37,0.00014198,2]
[352951089,1739458257597,-500.0,0.00014198,2]
[352951090,1739458257606,-504.31995257,0.00014198,2]
[352951091,1739458257616,-1354.59,0.00014198,2]
[352951092,1739458257625,-500.0,0.00014198,2]
[352951093,1739458257635,-1077.23,0.00014198,2]
[352951094,1739458257644,-1769.17,0.00014198,2]
[352951095,1739458257653,-1193.54,0.00014198,2]
[352951096,1739458257662,-500.0,0.00014198,2]
[352951097,1739458257671,-500.0,0.00014198,2]
[352951098,1739458257681,-500.0,0.00014198,2]
[352951099,1739458257690,-1485.38,0.00014198,2]
[352951100,1739458257699,-500.0,0.00014198,2]
[352951101,1739458257708,-500.0,0.00014198,2]
[352951102,1739458257718,-1005.68,0.00014198,2]
[352951103,1739458257727,-1531.98,0.00014198,2]
[352951104,1739458257736,-500.0,0.00014198,2]
[352951105,1739458257746,-865.94,0.00014198,2]
[352951106,1739458257755,-500.0,0.00014198,2]
[352951107,1739458257765,-1158.99,0.00014198,2]
[352951108,1739458257776,-1222.4,0.00014198,2]
[352951109,1739458257786,-500.0,0.00014198,2]
[352951110,1739458257796,-500.0,0.00014198,2]
[352951111,1739458257806,-1269.13,0.00014198,2]
[352951112,1739458257815,-1680.99,0.00014198,2]
[352951113,1739458257824,-500.0,0.00014198,2]
[352951114,1739458257977,-493.38970131,0.00014198,2]
[352951115,1739458257988,-1182.94,0.00014198,2]
[352951116,1739458257998,-500.0,0.00014198,2]
[352951117,1739458258009,-1059.75,0.00014198,2]
[352951118,1739458258019,-2261.69,0.00014198,2]
[352951119,1739458258028,-2960.22,0.00014198,2]
[352951120,1739458258038,-500.0,0.00014198,2]
[352951121,1739458258049,-700.19,0.00014198,2]
[352951122,1739458258058,-1486.23,0.00014198,2]
[352951123,1739458258067,-656.92,0.00014198,2]
[352951124,1739458258077,-1209.17,0.00014198,2]
[352951125,1739458258087,-501.8188706,0.00014198,2]
[352951126,1739458258101,-1193.53,0.00014198,2]
[352951127,1739458258110,-1262.89,0.00014198,2]
[352951128,1739458258120,-500.0,0.00014198,2]
[352951129,1739458258129,-500.0,0.00014198,2]
[352951130,1739458258139,-712.07,0.00014198,2]
[352951131,1739458258148,-2586.08,0.00014198,2]
[352951132,1739458258158,-500.0,0.00014198,2]
[352951133,1739458258169,-500.0,0.00014198,2]
[352951134,1739458258178,-500.0,0.00014198,2]
[352951135,1739458258188,-500.0,0.00014198,2]
[352951136,1739458258199,-4562.55,0.00014198,2]
[352951137,1739458258209,-500.0,0.00014198,2]
[352951138,1739458258219,-809.19,0.00014198,2]
[352951139,1739458258229,-1505.8,0.00014198,2]
[352951140,1739458258239,-1102.92,0.00014198,2]
[352951141,1739458258249,-500.0,0.00014198,2]
[352951142,1739458258258,-508.87211195,0.00014198,2]
[352951143,1739458258267,-1208.58,0.00014198,2]
[352951144,1739458258277,-500.0,0.00014198,2]
[352951145,1739458258287,-500.0,0.00014198,2]
[352951146,1739458258297,-2434.25,0.00014198,2]
[352951147,1739458258306,-1622.92,0.00014198,2]
[352951148,1739458258316,-504.56440985,0.00014198,2]
[352951149,1739458258325,-787.2,0.00014198,2]
[352951150,1739458258335,-1178.08,0.00014198,2]
[352951151,1739458258346,-2220.36,0.00014198,2]
[352951152,1739458258356,-3551.46,0.00014198,2]
[352951153,1739458258365,-513.21311406,0.00014198,2]
[352951154,1739458258374,-1261.9,0.00014198,2]
[352951155,1739458258384,-4416.42,0.00014198,2]
[352951156,1739458258393,-1652.97,0.00014198,2]
[352951157,1739458258402,-500.0,0.00014198,2]
[352951158,1739458258411,-2538.76,0.00014198,2]
[352951159,1739458258420,-500.0,0.00014198,2]
[352951160,1739458258430,-1227.23,0.00014198,2]